[Event "FIDE WSTC Open 50 2025"]
[Site "Prague"]
[Date "2025.02.17"]
[Round "1.29"]
[White "Bischoff, Klaus"]
[Black "Rogowski, Jaroslaw"]
[Result "1-0"]
[Annotator "TA"]
[ECO "D51"]
[WhiteElo "2432"]
[BlackElo "2039"]
[PlyCount "49"]
[EventDate "2025.02.17"]
[EventType "team-tourn"]
[EventCountry "CZE"]
[SourceTitle "playchess.com"]
[Source "ChessBase"]
[SourceQuality "1"]
[TimeControl "40/5400+30:1800+30"]

{[%evp 20,49,12,10,26,-3,56,25,54,57,145,126,114,88,206,226,497,502,481,484,716,743,706,711,726,745,841,846,819,747,741,742]} 1. d4 {[%emt 0:00:07]} d5 {[%emt 0:00:07]} 2. c4 {[%emt 0:00:11]} e6 {[%emt 0:00:07]} 3. Nc3 {[%emt 0:00:13]} Nf6 {[%emt 0:00:11]} 4. Bg5 {[%emt 0:00:37]} Nbd7 {[%emt 0:01:01][%cal Bb8d7,Bd7f8,Bf8e6][%mdl 32]} 5. cxd5 {[%emt 0:00:44]} exd5 {[%emt 0:00:03]} 6. e3 {[%emt 0:00:13]} c6 {[%emt 0:00:33]} 7. Bd3 {[%emt 0:00:24]} Be7 {[%emt 0:04:22]} 8. h3 {[%emt 0:01:16]} Nf8 {[%emt 0:02:14]} 9. Qc2 {[%emt 0:05:10]} Ne6 {[%emt 0:14:55]} 10. Bh4 {[%emt 0:00:25]} g6 {[%emt 0:04:25]} 11. Nf3 {[%emt 0:02:27]} O-O {[%emt 0:05:22] D36: Queen's Gambit Declined: Exchange Variation: Main line (5 Bg5 c6 6 Qc2).} 12. O-O-O {[%emt 0:01:29] has lost popularity (12.0-0).} Nd7 {[%emt 0:17:39]} (12... c5 $11) 13. Bg3 {[%emt 0:02:24]} f5 $146 {[%emt 0:02:32] White has an edge.} (13... Nf6 14. Kb1 c5 15. dxc5 Nxc5 16. Nd4 Bd7 17. f3 Rc8 18. Qd2 Nxd3 19. Qxd3 Bc6 {1-0 Alekseev,V-Genchev,M (2259) Champion's League 2017/C3 email [2]}) 14. Kb1 {[%emt 0:07:01]} b5 (14... Nf6 $14) 15. h4 {[%emt 0:05:47] h5 would now be deadly. White is more active.} Nf6 {[%emt 0:17:06]} 16. Ne5 {[%emt 0:03:27]} Bd7 {[%emt 0:00:01] [#]} (16... Qe8 $16 {might work better.}) 17. h5 $1 $18 {[%emt 0:01:42]} Be8 {[%emt 0:06:38]} (17... Nxh5 18. Rxh5 b4) 18. hxg6 {[%emt 0:00:28] White is clearly winning.} hxg6 {[%emt 0:00:03]} 19. Ne2 {[%emt 0:04:00]} Rc8 {[%emt 0:01:06]} (19... Ne4 $142 20. Bxe4 (20. Nxc6 Bxc6 21. Qxc6 Qb6 $18) 20... dxe4 21. Nxc6 Bxc6) 20. Nf4 {[%emt 0:00:42]} Nxf4 {[%emt 0:01:46]} 21. Bxf4 {[%emt 0:00:13]} Nh5 {[%emt 0:11:06]} 22. Bh6 {[%emt 0:01:59]} Rf6 {[%emt 0:00:21]} 23. g4 {[%emt 0:00:59]} fxg4 {[%emt 0:02:53]} 24. Bxg6 {[%emt 0:02:55]} Bxg6 {[%emt 0:05:42]} 25. Nxg6 {[%emt 0:00:07] Weighted Error Value: White=0.14 (very precise) /Black=0.81  Mistake:       	---       	Black=5      Inaccurate:     	White=2     	Black=1      OK:         	White=2     	Black=2      Best:        	White=1     	---        Strong:       	White=1     	---} 1-0

[Event "FIDE WSTC Open 50 2025"]
[Site "Prague"]
[Date "2025.02.17"]
[Round "1.30"]
[White "Ograbek, Grzegorz"]
[Black "Schulz, Klaus-Juergen"]
[Result "0-1"]
[Annotator "TA"]
[ECO "D20"]
[WhiteElo "2085"]
[BlackElo "2345"]
[PlyCount "164"]
[EventDate "2025.02.17"]
[EventType "team-tourn"]
[EventCountry "CZE"]
[SourceTitle "playchess.com"]
[Source "ChessBase"]
[SourceQuality "1"]
[TimeControl "40/5400+30:1800+30"]

{[%evp 20,164,0,-43,-50,-150,-131,-160,-70,-73,-73,-73,-77,-107,-107,-106,-82,-125,-83,-135,-137,-195,-195,-183,-152,-156,-154,-175,-101,-102,-87,-90,-2,-57,-18,-27,-22,-147,-103,-109,-69,-128,-12,-27,0,-113,-64,-64,-60,-64,136,0,77,59,83,93,85,83,204,208,250,199,195,64,148,-7,-7,0,-2,0,-15,0,-29,-184,-187,-184,-197,-197,-187,-187,-187,-195,-184,-268,-191,-179,-177,-170,-174,-198,-198,-239,-210,-272,-265,-261,-255,-299,-283,-421,-437,-431,-409,-535,-539,-486,0,-431,-431,-413,-382,-361,-341,-410,-342,-352,-354,-331,-316,-315,-314,-320,-293,-787,-822,-723,-416,-1403,-1285,-1215,-1067,-3034,-4121,-9624,-10853,-12002,-8257,-10902,-9347,-5808,-2393,-29959,-29957,-29967,-29966,-5808,-5808]} 1. d4 {[%emt 0:00:04]} d5 {[%emt 0:02:27]} 2. c4 {[%emt 0:00:37]} dxc4 {[%emt 0:01:11]} 3. e3 {[%emt 0:00:38]} Nf6 {[%emt 0:00:12]} 4. Bxc4 {[%emt 0:00:21]} e6 {[%emt 0:00:15]} 5. Nf3 {[%emt 0:00:29]} a6 {[%emt 0:00:32]} 6. a4 {[%emt 0:03:32]} c5 {[%emt 0:04:10]} 7. O-O {[%emt 0:00:16]} Nc6 {[%emt 0:00:19]} 8. Qe2 {[%emt 0:00:39]} Qc7 {[%emt 0:01:12]} 9. Rd1 {[%emt 0:00:58]} Be7 {[%emt 0:02:07]} 10. Nc3 {[%emt 0:00:49]} O-O {[%emt 0:02:36]} 11. e4 {[%emt 0:23:48]} Ng4 {[%emt 0:15:47] D27: Queen's Gambit Accepted: Classical main line: 7 e4!? and 7 a4.} 12. g3 {[%emt 0:45:51]} (12. e5 $15) 12... cxd4 $17 {[%emt 0:28:24][%csl Od4] Black has a strong passed pawn} 13. Bf4 {[%emt 0:12:27]} (13. Nxd4 Nxd4 14. Rxd4 Bc5 $17) 13... e5 {[%emt 0:15:25]} (13... Qa5 $1 $17 14. Nxd4 Nxd4 15. Rxd4 Qh5 (15... Bc5 $2 16. Rd2 $17)) 14. Nd5 $15 {[%emt 0:00:08]} Qd8 {[%emt 0:00:57]} 15. Bd2 {[%emt 0:02:17]} Nf6 {[%emt 0:01:30]} 16. a5 $146 {[%emt 0:01:06]} ({Predecessor:} 16. Ne1 Be6 17. Nxf6+ Bxf6 18. Bxe6 fxe6 19. Nd3 Be7 20. Rac1 Rc8 21. Qg4 Qd7 22. h4 {1-0 Grigoriadis,A (2417)-Panagiotopoulos,A (2197) Athens Acropolis op 2008 (5)}) 16... Bg4 {[%emt 0:00:23]} 17. Qd3 {[%emt 0:00:32]} Bd6 {[%emt 0:05:36]} 18. Rdc1 {[%emt 0:01:01]} Rb8 {[%emt 0:03:43]} 19. Ne1 {[%emt 0:02:22]} (19. Bg5 $142) 19... Nxd5 $17 {[%emt 0:00:37]} 20. exd5 {[%emt 0:01:11]} (20. Bxd5 $17 Qd7 21. f4) 20... Ne7 $19 {[%emt 0:00:26]} 21. f3 {[%emt 0:00:30]} Bf5 {[%emt 0:01:07]} 22. Qe2 {[%emt 0:00:19]} Re8 {[%emt 0:01:20]} 23. Nd3 {[%emt 0:00:14]} Ng6 {[%emt 0:01:14]} ({Black should play} 23... Rc8 $19 24. Bb3 Rxc1+ 25. Rxc1 Bd7) 24. Nf2 $17 {[%emt 0:00:37]} Bd7 {[%emt 0:02:06]} 25. Ne4 {[%emt 0:00:32]} Bf8 {[%emt 0:00:34]} (25... Qe7 $17) 26. Bg5 {[%emt 0:00:28]} (26. h4 $11) 26... Be7 {[%emt 0:01:41]} (26... f6 $5 27. Bd2 Kh8 $14) 27. Bd2 {[%emt 0:00:51]} h6 {[%emt 0:00:26]} 28. g4 {[%emt 0:01:04]} (28. d6 $11 Bg5 29. Bxg5 hxg5 30. Bd5) 28... Bf8 {[%emt 0:02:11]} 29. Kh1 {[%emt 0:00:10]} Kh7 {[%emt 0:00:33]} 30. Ng3 {[%emt 0:00:12]} ({Better is} 30. b4 $15) 30... Nf4 {[%emt 0:00:55]} (30... Kh8 $17 31. Qe4 Nh4) 31. Qe4+ $11 {[%emt 0:00:36]} Ng6 {[%emt 0:00:44]} 32. Re1 {[%emt 0:00:15]} (32. Qe2 $1 $11 {remains equal.}) 32... Bb5 {[%emt 0:01:15]} (32... Kg8 $17 33. b3 Nh4) 33. Bxb5 $15 {[%emt 0:00:32]} axb5 34. a6 {[%emt 0:00:07][%cal Ba5a6,Ba6a7][%mdl 32]} Qb6 $2 {[%emt 0:01:45]} (34... bxa6 $15 {keeps the upper hand.} 35. Rxa6 b4) 35. Ba5 {[%emt 0:00:21]} (35. h4 $16) 35... Qd6 {[%emt 0:01:50]} (35... Qxa6 $11 36. Bc7 Qf6) 36. Nf5 {[%emt 0:00:20][%mdl 1024] White has strong compensation.} Qd7 {[%emt 0:00:28]} 37. a7 {[%emt 0:00:14] White plays on the queen side and is better} Ra8 {[%emt 0:00:52]} 38. Bb6 {[%emt 0:00:16]} Rec8 {[%emt 0:00:30]} (38... Kg8 $16) 39. Rec1 $18 {[%emt 0:00:30]} Rc4 {[%emt 0:00:56][%cal Od4d3]} 40. b3 {[%emt 0:00:10]} Rc3 {[%emt 0:00:15] [#]} 41. f4 {[%emt 0:31:40]} exf4 {[%emt 0:31:31] [#]} (41... Rxc1+ $1 $14 42. Rxc1 Nxf4) 42. Bxd4 $2 {[%emt 0:00:08]} ({Only move:} 42. d6 $1 $16) 42... Re8 $1 $11 {[%emt 0:00:00]} (42... Rxb3 $2 43. d6 Bxd6 44. Qd5 $18 (44. Bxg7 Ba3 $14)) 43. Qg2 $1 {[%emt 0:00:00]} (43. a8=R $2 Rxc1+ (43... Rxe4 $2 44. Rxc3 Qxd5 45. Kg1 $19) 44. Rxc1 Rxe4 $19) 43... f3 {[%emt 0:00:00] The board is on fire.} (43... Rxb3 $2 44. d6 (44. a8=R Rxa8 45. Rxa8 f3 $18) 44... Rd3 45. Rc7 $18 (45. a8=R Rxa8 46. Rxa8 Qe6 $18) (45. a8=B f3 $11)) 44. Qf2 {[%emt 0:00:00]} Rxc1+ {[%emt 0:00:00]} (44... Rxb3 $6 45. a8=Q (45. a8=R Re2 $11) 45... Rxa8 46. Rxa8 Qxd5 47. Rf1 $18) 45. Rxc1 {[%emt 0:00:00]} Qxd5 {[%emt 0:00:00][%cal Oe8a8]} 46. Be3 $2 {[%emt 0:00:00]} (46. Rf1 $11 {and White stays safe.}) 46... Ne5 $19 {[%emt 0:00:00]} (46... Qxb3 47. Qxf3 Qa3 48. Rf1 $11) 47. Rf1 {[%emt 0:00:00]} Nxg4 {[%emt 0:00:00]} 48. Qxf3 {[%emt 0:00:05]} Nxe3 {[%emt 0:00:00]} 49. Nxe3 {[%emt 0:01:00]} Qxf3+ {[%emt 0:00:00]} (49... Qxb3 50. Qf5+ Kh8 (50... Kg8 51. Nd5 $16) 51. Nd5 $11) 50. Rxf3 {[%emt 0:00:07][%mdl 4096] Endgame KRB-KRN. Black is two pawns up.} Bc5 {[%emt 0:00:00]} 51. Nd5 {[%emt 0:01:07]} (51. Rxf7 $142 Bxa7 (51... Bxe3 52. Re7 $11) 52. Nf5) 51... Bxa7 {[%emt 0:00:58]} 52. Rxf7 {[%emt 0:00:08]} Re5 {[%emt 0:00:27]} 53. Rd7 {[%emt 0:02:06]} Bc5 {[%emt 0:01:01]} 54. Kg2 {[%emt 0:00:51]} b4 {[%emt 0:00:49]} 55. Kf3 {[%emt 0:00:10]} b6 {[%emt 0:00:32]} 56. Nf6+ {[%emt 0:01:18]} Kg6 {[%emt 0:00:18]} 57. Ne4 {[%emt 0:00:04]} Rf5+ {[%emt 0:00:19]} 58. Kg2 {[%emt 0:00:20]} Rf4 {[%emt 0:00:25]} 59. Ng3 {[%emt 0:01:25]} (59. Nd2 {keeps fighting.}) 59... Rf2+ {[%emt 0:00:31]} 60. Kh3 {[%emt 0:00:27]} Rc2 {[%emt 0:00:28]} (60... Rf3 61. Kg4 Re3 (61... Rxb3 $2 62. Nh5 $19) 62. Nh5 Re4+ (62... Rxb3 63. Rxg7#) 63. Kf3 $19) 61. Ne4 {[%emt 0:00:29]} Kf5 {[%emt 0:00:52]} 62. Ng3+ {[%emt 0:00:37]} Kg6 {[%emt 0:00:15]} 63. Ne4 {[%emt 0:00:16]} Re2 {[%emt 0:00:11]} 64. Nd2 {[%emt 0:01:09]} Kf6 {[%emt 0:01:02]} 65. Nc4 {[%emt 0:00:33]} Bg1 {[%emt 0:00:31][%cal Ob6b5]} 66. Rd6+ {[%emt 0:01:01]} Ke7 {[%emt 0:00:11]} 67. Rg6 {[%emt 0:00:28]} Rxh2+ {[%emt 0:01:09]} ({Weaker is} 67... Bxh2 68. Rxg7+ Kf6 69. Rb7 $19) 68. Kg3 {[%emt 0:00:04]} Rc2 {[%emt 0:00:19]} 69. Rxg7+ {[%emt 0:00:24]} Kf6 {[%emt 0:00:07]} 70. Rd7 {[%emt 0:00:33]} Bc5 {[%emt 0:00:58] Prevents Rd6+.} 71. Nxb6 $2 {[%emt 0:01:00]} (71. Kg4) 71... Bxb6 {KRB-KR} 72. Rd6+ {[%emt 0:00:07]} Kg5 {[%emt 0:01:11]} 73. Rxb6 {[%emt 0:00:06] KR-KR. Black is a pawn up.} (73. Rd5+ $142 Kg6 74. Rd6+ Kg7 75. Rxb6) 73... Rc3+ {[%emt 0:00:03]} 74. Kf2 {[%emt 0:01:31]} Rxb3 {[%emt 0:00:05] Hoping for ...h5.} 75. Kg2 {[%emt 0:00:19]} h5 {[%emt 0:00:11]} 76. Rb8 {[%emt 0:00:08]} h4 {[%emt 0:00:35]} 77. Rg8+ {[%emt 0:00:37]} Kf4 {[%emt 0:00:08] ( -> ...Rg3+)} 78. Rh8 {[%emt 0:00:15] [#]} h3+ $1 {[%emt 0:00:45]} 79. Kh2 {[%emt 0:00:11]} (79. Kf2 Rf3+) 79... Ke4 {[%emt 0:00:41]} (79... Ke5 $142 80. Rb8 Kd5 81. Rd8+ Kc4 82. Rc8+ Kd3) 80. Rh4+ {[%emt 0:01:14]} Kd5 {[%emt 0:01:12]} 81. Rh5+ {[%emt 0:00:54]} Kc4 {[%emt 0:00:13]} 82. Rh4+ {[%emt 0:00:14]} Kb5 {[%emt 0:00:09] What a bad dream for White.   Weighted Error Value: White=0.42/Black=0.32  Mistake:       	White=14    	Black=9      Inaccurate:     	White=3     	Black=4      OK:         	White=18    	Black=26     Best:        	White=9     	Black=3      Strong:       	White=1     	Black=1} 0-1

[Event "FIDE WSTC Open 50 2025"]
[Site "Prague"]
[Date "2025.02.17"]
[Round "1.31"]
[White "Wolf, Volker"]
[Black "Czyz, Andrzej"]
[Result "1/2-1/2"]
[Annotator "TA"]
[ECO "C01"]
[WhiteElo "2206"]
[BlackElo "1941"]
[PlyCount "150"]
[EventDate "2025.02.17"]
[EventType "team-tourn"]
[EventCountry "CZE"]
[SourceTitle "playchess.com"]
[Source "ChessBase"]
[SourceQuality "1"]
[TimeControl "40/5400+30:1800+30"]

{[%evp 16,150,18,17,44,25,14,16,28,10,18,8,25,29,17,18,31,21,18,18,12,15,25,12,21,4,29,38,31,19,51,39,89,81,70,55,69,68,76,83,129,126,116,88,79,91,146,150,156,110,112,101,102,103,118,119,122,106,120,102,106,79,76,74,76,70,104,105,105,0,0,0,16,17,21,8,87,80,85,81,82,84,101,91,88,61,77,61,114,62,61,62,62,20,62,62,62,62,66,70,150,158,252,235,295,8,8,8,8,8,8,0,8,8,8,8,8,8,8,0,8,8,8,8,8,8,8,8,8,8,8,8,8,8,8,0,8]} 1. e4 {[%emt 0:00:17]} e6 {[%emt 0:00:28]} 2. d4 {[%emt 0:00:42]} d5 {[%emt 0:00:05]} 3. exd5 {[%emt 0:01:14]} exd5 {[%emt 0:00:08]} 4. Nf3 {[%emt 0:00:27]} Nc6 {[%emt 0:00:32]} 5. Bd3 {[%emt 0:01:09]} Bd6 {[%emt 0:00:22]} 6. O-O {[%emt 0:01:45]} Nge7 {[%emt 0:00:36]} 7. Re1 {[%emt 0:00:52]} Bg4 {[%emt 0:03:58]} 8. c3 {[%emt 0:00:13]} Qd7 {[%emt 0:01:08]} 9. Nbd2 {[%emt 0:01:30][%cal Bb1d2,Bd2f1,Bf1g3,Bg3f5][%mdl 32]} Bf5 {[%emt 0:02:39] 9...f6 is the modern continuation. C01: French: Exchange Variation.} 10. Nf1 {[%emt 0:01:53]} Bxd3 {[%emt 0:00:54]} 11. Qxd3 {[%emt 0:00:02]} O-O {[%emt 0:03:52]} 12. Ng3 {[%emt 0:02:55]} Rae8 {[%emt 0:13:03]} 13. Bd2 {[%emt 0:01:45]} Ng6 {[%emt 0:02:32]} 14. Qf5 $146 {[%emt 0:12:32]} (14. Nf5 Bf4 15. g3 Bxd2 16. Nxd2 Nce7 17. Ne3 f5 18. f4 c6 19. Nf3 {1-0 Satta,V (2089)-Colombo,A (1981) Imperia op 27th 1985 (5)}) 14... Qxf5 {[%emt 0:06:51]} 15. Nxf5 {[%emt 0:00:04]} Bf4 {[%emt 0:02:29]} 16. Be3 {[%emt 0:04:48]} Bxe3 {[%emt 0:06:21]} 17. Nxe3 {[%emt 0:00:54]} Nce7 {[%emt 0:02:31]} 18. g3 {[%emt 0:00:51]} c6 {[%emt 0:00:37] Not much happening anymore. The position is symmetric and equal} 19. h4 {[%emt 0:03:42]} f6 {[%emt 0:07:04]} 20. b3 {[%emt 0:07:06]} Nc8 {[%emt 0:03:40]} 21. c4 {[%emt 0:11:57]} dxc4 {[%emt 0:09:52]} 22. bxc4 {[%emt 0:00:11]} (22. Nxc4 Rxe1+ 23. Rxe1 Nge7 $15) 22... b6 {[%emt 0:00:36]} 23. a4 {[%emt 0:02:06]} a6 {[%emt 0:03:27]} (23... Nd6 $14) 24. Rab1 $16 {[%emt 0:10:35]} Nge7 {[%emt 0:03:32]} 25. d5 {[%emt 0:02:43]} cxd5 {[%emt 0:05:11]} 26. cxd5 {[%emt 0:00:17][%csl Od5] White has a strong passed pawn} Rd8 {[%emt 0:00:05]} 27. Nd4 {[%emt 0:02:19]} Rd6 {[%emt 0:00:05]} (27... Rfe8) 28. Ne6 {[%emt 0:02:29]} Re8 {[%emt 0:01:13]} 29. Nc7 {[%emt 0:01:35][%csl LRa6,LRe8]} Red8 {[%emt 0:00:06]} 30. Rec1 {[%emt 0:00:46]} b5 {[%emt 0:07:02]} 31. axb5 {[%emt 0:01:12]} axb5 {[%emt 0:00:01]} 32. Nxb5 {[%emt 0:01:51]} (32. Rxb5 $142 {Ne6 is the strong threat.} Nb6 33. Rd1) 32... R6d7 {[%emt 0:00:40]} 33. Nc7 {[%emt 0:00:33]} Nd6 {[%emt 0:00:49]} 34. Ne6 {[%emt 0:01:29]} Rc8 {[%emt 0:01:36]} 35. Rxc8+ {[%emt 0:00:50]} Nexc8 {[%emt 0:00:47]} 36. Rb8 {[%emt 0:01:18]} Kf7 {[%emt 0:00:15]} 37. h5 {[%emt 0:02:43] White has more active pieces.} g6 {[%emt 0:02:32]} 38. hxg6+ {[%emt 0:01:50]} hxg6 {[%emt 0:00:11]} 39. Kf1 {[%emt 0:02:01]} Ke7 {[%emt 0:02:04]} 40. Ke2 {[%emt 0:02:18]} Rb7 {[%emt 0:00:47] [#]} 41. Rxb7+ {[%emt 0:32:14]} Nxb7 {[%emt 0:30:02][%mdl 4096] Endgame KNN-KNN. White is a pawn up.} 42. Nc4 {[%emt 0:00:21] Wards off Nb6} (42. Nf4 $16) 42... Nbd6 $1 $11 {[%emt 0:03:17]} 43. Ne3 {[%emt 0:03:34]} Ne4 {[%emt 0:01:04]} 44. Nf4 {[%emt 0:02:12]} g5 {[%emt 0:01:43]} 45. Nh5 {[%emt 0:04:58]} Ncd6 {[%emt 0:00:00] Repels Nf5+} (45... Nb6 $1 $11 {keeps the balance.}) 46. f3 $16 {[%emt 0:00:00]} Nc5 {[%emt 0:00:00]} 47. Ng7 {[%emt 0:00:00]} Nb5 {[%emt 0:00:00]} 48. Ngf5+ {[%emt 0:00:00]} Kf7 {[%emt 0:00:00]} 49. Kd2 {[%emt 0:00:00]} Nd7 {[%emt 0:00:00]} 50. Nc4 {[%emt 0:00:00]} Kg6 {[%emt 0:00:00]} 51. g4 {[%emt 0:00:00]} Kf7 {[%emt 0:00:00]} (51... Nc7 $14) 52. Ncd6+ {[%emt 0:00:00]} (52. Kd3 $16) 52... Nxd6 $14 {[%emt 0:00:00]} 53. Nxd6+ {[%emt 0:00:00] KN-KN. White is a pawn up.} Ke7 54. Nc4 {[%emt 0:00:00]} Nf8 {[%emt 0:00:00][%cal Of6f5]} 55. Ke3 {[%emt 0:00:00]} Ng6 {[%emt 0:00:00]} 56. Kd4 {[%emt 0:00:00]} Nh4 {[%emt 0:00:00]} 57. Ke4 {[%emt 0:00:00]} Ng2 {[%emt 0:00:00]} ({Black should play} 57... Ng6 $14) 58. Ne3 $16 {[%emt 0:00:00]} Nf4 {[%emt 0:00:00]} (58... Ne1 $16 59. f4 gxf4) 59. Kf5 $18 {[%emt 0:00:00]} Nd3 {[%emt 0:00:00] [#]} 60. d6+ $2 {[%emt 0:00:00]} Kxd6 $11 {[%emt 0:00:00] The position is equal.} 61. Kxf6 {[%emt 0:00:00]} Ne5 $1 {[%emt 0:00:00]} 62. Nf5+ {[%emt 0:04:45]} Kd5 {[%emt 0:00:00]} 63. Ne3+ {[%emt 0:01:58]} Kd6 {[%emt 0:00:00]} 64. Kxg5 {[%emt 0:00:30]} Nxf3+ {[%emt 0:00:00]} 65. Kf4 {[%emt 0:00:17]} Ne5 {[%emt 0:00:00]} 66. g5 {[%emt 0:00:19]} Ke6 {[%emt 0:00:00]} 67. Ng4 {[%emt 0:00:59]} Ng6+ {[%emt 0:00:58]} 68. Ke4 {[%emt 0:00:10]} Ne7 {[%emt 0:01:07]} 69. Ne5 {[%emt 0:00:15]} Kd6 {[%emt 0:00:33]} 70. Nd3 {[%emt 0:00:10]} Ke6 {[%emt 0:00:27]} 71. Nf4+ {[%emt 0:00:18]} Kf7 {[%emt 0:00:13]} 72. Kd4 {[%emt 0:01:28]} Nf5+ {[%emt 0:00:44]} 73. Ke5 {[%emt 0:00:35]} Ne7 {[%emt 0:00:14]} 74. Kd6 {[%emt 0:00:20]} Nf5+ {[%emt 0:00:07]} 75. Ke5 {[%emt 0:00:09]} Ne7 {[%emt 0:00:02] Weighted Error Value: White=0.19 (very precise) /Black=0.18 (very precise)   Missed win:     	White=1     	---        Mistake:       	White=3     	Black=7      Inaccurate:     	White=2     	Black=3      OK:         	White=19    	Black=27     Best:        	White=3     	Black=9      Strong:       	---       	Black=2} 1/2-1/2